fUST/lending_fUST_20250414
["ID","MTS","AMOUNT","RATE_DAILY","PERIOD"]
[357935462,1744601438820,-522.18412443,0.00035318,2]
[357935464,1744601438829,-634.83485755,0.00035318,2]
[357935466,1744601438838,-504.71510859,0.00035318,2]
[357935468,1744601438846,-509.56196097,0.00035318,2]
[357935470,1744601438856,-500.0,0.00035318,2]
[357935472,1744601438865,-500.0,0.00035318,2]
[357935474,1744601438874,-501.75640922,0.00035318,2]
[357935476,1744601438884,-500.0,0.00035318,2]
[357935478,1744601438893,-510.98895373,0.00035318,2]
[357935479,1744601438902,-500.0,0.00035318,2]
[357935482,1744601438912,-508.02215505,0.00035318,2]
[357935484,1744601438922,-504.66280587,0.00035318,2]
[357935486,1744601438932,-604.09812734,0.00035318,2]
[357935487,1744601438941,-505.59941597,0.00035318,2]
[357935490,1744601438950,-509.93233539,0.00035318,2]
[357935491,1744601438960,-512.83971587,0.00035318,2]
[357935493,1744601438970,-500.0,0.00035318,2]
[357935495,1744601438980,-506.18127884,0.00035318,2]
[357935497,1744601438990,-582.09503317,0.00035318,2]
[357935500,1744601439009,-505.56196445,0.00035318,2]
[357935503,1744601439021,-502.69583781,0.00035318,2]
[357935504,1744601439030,-614.76510386,0.00035318,2]
[357935506,1744601439040,-500.0,0.00035318,2]
[357935508,1744601439050,-500.0,0.00035318,2]
[357935510,1744601439060,-505.73699061,0.00035318,2]
[357935512,1744601439069,-500.0,0.00035318,2]
[357935514,1744601439080,-512.21937697,0.00035318,2]
[357935516,1744601439090,-566.50559553,0.00035318,2]
[357935518,1744601439099,-500.0,0.00035318,2]
[357935520,1744601439109,-500.0,0.00035318,2]
[357935521,1744601439119,-232.4848222,0.00035318,2]
[357935524,1744601439128,-508.58295328,0.00035318,2]
[357935526,1744601439137,-610.90325624,0.00035318,2]
[357935528,1744601439147,-518.56809779,0.00035318,2]
[357935529,1744601439157,-505.27286323,0.00035318,2]
[357935532,1744601439168,-500.0,0.00035318,2]
[357935533,1744601439180,-504.19551239,0.00035318,2]
[357935535,1744601439190,-500.0,0.00035318,2]
[357935538,1744601439200,-536.95746724,0.00035318,2]
[357935540,1744601439211,-500.0,0.00035318,2]
[357935542,1744601439220,-503.50213445,0.00035318,2]
[357935544,1744601439229,-507.14129733,0.00035318,2]
[357935546,1744601439238,-507.52957501,0.00035318,2]
[357935548,1744601439250,-505.14852652,0.00035318,2]
[357935550,1744601439260,-500.0,0.00035318,2]
[357935552,1744601439270,-500.0,0.00035318,2]
[357935554,1744601439279,-590.48974725,0.00035318,2]
[357935556,1744601439288,-500.84349582,0.00035318,2]
[357935558,1744601439298,-500.0,0.00035318,2]
[357935560,1744601439308,-500.0,0.00035318,2]
[357935562,1744601439318,-644.06078098,0.00035318,2]
[357935564,1744601439328,-633.32436419,0.00035318,2]
[357935566,1744601439337,-500.0,0.00035318,2]
[357935568,1744601439347,-500.0,0.00035318,2]
[357935570,1744601439356,-502.53986079,0.00035318,2]
[357935572,1744601439366,-500.0,0.00035318,2]
[357935574,1744601439376,-507.60936835,0.00035318,2]
[357935576,1744601439385,-510.18845388,0.00035318,2]
[357935578,1744601439395,-460.4125764,0.00035318,2]
[357935580,1744601439404,-500.0,0.00035318,2]
[357935582,1744601439415,-508.9580862,0.00035318,2]
[357935584,1744601439424,-504.04361518,0.00035318,2]
[357935586,1744601439434,-500.0,0.00035318,2]
[357935588,1744601439443,-500.0,0.00035318,2]
[357935590,1744601439453,-535.19947704,0.00035318,2]
[357935592,1744601439463,-505.85211153,0.00035318,2]
[357935594,1744601439473,-508.16886683,0.00035318,2]
[357935596,1744601439482,-525.31039467,0.00035318,2]
[357935598,1744601439491,-502.26770127,0.00035318,2]
[357935600,1744601439501,-507.91152522,0.00035318,2]
[357935602,1744601439510,-503.60358575,0.00035318,2]
[357935604,1744601439520,-591.92017818,0.00035318,2]
[357935606,1744601439530,-505.76855134,0.00035318,2]
[357935608,1744601439539,-500.0,0.00035319,2]
[357935610,1744601439549,-513.0557831,0.00035319,2]
[357935612,1744601439559,-500.0,0.00035319,2]
[357935614,1744601439568,-500.0,0.00035319,2]
[357935615,1744601439577,-504.88633483,0.00035319,2]
[357935617,1744601439586,-500.0,0.00035319,2]
[357935619,1744601439595,-500.0,0.00035319,2]
[357935621,1744601439605,-508.06108454,0.00035319,2]
[357935623,1744601439614,-500.0,0.00035319,2]
[357935626,1744601439624,-500.0,0.00035319,2]
[357935629,1744601439638,-508.2230652,0.00035319,2]
[357935631,1744601439648,-500.0,0.00035319,2]
[357935633,1744601439658,-556.98421231,0.00035319,2]
[357935635,1744601439667,-519.23515818,0.00035319,2]
[357935637,1744601439677,-507.42254197,0.00035319,2]
[357935639,1744601439687,-505.74131241,0.00035319,2]
[357935641,1744601439696,-511.26963196,0.00035319,2]
[357935643,1744601439707,-507.17692854,0.00035319,2]
[357935645,1744601439716,-500.0,0.00035319,2]
[357935647,1744601439726,-500.0,0.00035319,2]
[357935649,1744601439735,-503.61288295,0.00035319,2]
[357935652,1744601439745,-506.81821085,0.00035319,2]
[357935655,1744601439755,-503.73392564,0.00035319,2]
[357935657,1744601439765,-500.0,0.00035319,2]
[357935659,1744601439775,-500.0,0.00035319,2]
[357935661,1744601439785,-514.03800208,0.00035319,2]
[357935663,1744601439795,-500.0,0.00035319,2]
[357935665,1744601439805,-509.50912489,0.00035319,2]
[357935667,1744601439815,-566.39142192,0.00035319,2]
[357935670,1744601439825,-503.38381201,0.00035319,2]
[357935672,1744601439835,-485.18168936,0.00035319,2]
[357935674,1744601439844,-507.85577186,0.00035319,2]
[357935676,1744601439854,-508.45250188,0.00035319,2]
[357935678,1744601439864,-503.06254058,0.00035319,2]
[357935680,1744601439873,-537.153561,0.00035319,2]
[357935682,1744601439882,-512.11858587,0.00035319,2]
[357935684,1744601439892,-535.42348406,0.00035319,2]
[357935686,1744601439902,-516.67109201,0.00035319,2]
[357935688,1744601439913,-500.0,0.00035319,2]
[357935690,1744601439922,-502.2162278,0.00035319,2]
[357935692,1744601439932,-501.66746231,0.00035319,2]
[357935694,1744601439942,-583.62265586,0.00035319,2]
[357935696,1744601439951,-508.8820341,0.00035319,2]
[357935698,1744601439961,-504.62347758,0.00035319,2]
[357935700,1744601439971,-511.33777411,0.00035319,2]
[357935702,1744601439980,-501.43672821,0.00035319,2]
[357935704,1744601439990,-508.08045207,0.00035319,2]
[357935706,1744601440000,-500.0,0.00035319,2]
[357935708,1744601440009,-500.0,0.00035319,2]
[357935710,1744601440019,-500.0,0.00035319,2]
[357935712,1744601440028,-500.0,0.00035319,2]
[357935714,1744601440038,-514.19118081,0.00035319,2]
[357935716,1744601440047,-555.45633652,0.00035319,2]
[357935718,1744601440057,-503.52982206,0.00035319,2]
[357935720,1744601440067,-504.75956315,0.00035319,2]
[357935722,1744601440076,-500.0,0.00035319,2]
[357935724,1744601440086,-504.2435936,0.00035319,2]
[357935726,1744601440097,-500.0,0.00035319,2]
[357935728,1744601440107,-500.0,0.00035319,2]
[357935730,1744601440116,-500.0,0.00035319,2]
[357935732,1744601440126,-500.0,0.00035319,2]
[357935734,1744601440135,-151.0,0.00035319,2]
[357935736,1744601440145,-503.03234837,0.00035319,2]
[357935738,1744601440156,-616.26099552,0.00035319,2]
[357935740,1744601440166,-500.59984666,0.00035319,2]
[357935742,1744601440178,-505.53675303,0.00035319,2]
[357935744,1744601440188,-500.0,0.00035319,2]
[357935746,1744601440197,-500.0,0.00035319,2]
[357935748,1744601440206,-528.55002353,0.00035319,2]
[357935750,1744601440217,-500.0,0.00035319,2]
[357935752,1744601440226,-500.0,0.00035319,2]
[357935754,1744601440236,-500.0,0.00035319,2]
[357935756,1744601440247,-500.0,0.00035319,2]
[357935758,1744601440256,-259.62854538,0.00035319,2]
[357935760,1744601440267,-509.52404734,0.00035319,2]
[357935763,1744601440277,-512.16820869,0.00035319,2]
[357935765,1744601440286,-507.03649187,0.00035319,2]
[357935767,1744601440295,-581.24888012,0.00035319,2]
[357935769,1744601440304,-500.0,0.00035319,2]
[357935771,1744601440314,-573.09383647,0.00035319,2]
[357935773,1744601440323,-507.43223588,0.00035319,2]
[357935795,1744601440518,-229.817217,0.00035319,14]
[357935797,1744601440528,-504.15507886,0.00035319,2]
[357935799,1744601440537,-500.0,0.00035319,2]
[357935801,1744601440547,-552.31410441,0.00035319,2]
[357935803,1744601440556,-500.0,0.00035319,2]
[357935805,1744601440565,-2193.5,0.00035319,2]
[357935807,1744601440575,-244.123411,0.00035319,14]
[357935809,1744601440584,-151.0,0.00035319,14]
[357935811,1744601440594,-216.853249,0.00035319,14]
[357935813,1744601440603,-500.0,0.00035319,2]
[357935815,1744601440612,-5387.61125733,0.00035319,3]
[357935817,1744601440621,-29429.91025086,0.00035319,2]
[357935819,1744601440636,-783.01850417,0.00035319,2]
[357935822,1744601440651,-2762.47257269,0.00035319,2]
[357935824,1744601440663,-2122.26064756,0.00035319,2]
[357935836,1744601440770,-727.8044058,0.0003521,2]
[357935838,1744601440780,-208.76587547,0.0003522,2]
[357935840,1744601440790,-77.41331873,0.0003531,2]
[357935843,1744601440805,-331.0,0.0003531,2]
[357936081,1744601443248,-211.2835196,0.00034726,4]
[357936083,1744601443258,-500.0,0.00035217,2]
[357936085,1744601443268,-91.58668127,0.0003531,2]
[357936087,1744601443277,-8198.95223492,0.00035319,2]
[357936096,1744601443357,-21601.72390304,0.00035319,2]
[357936098,1744601443367,-500.0,0.0003532,2]
[357936100,1744601443376,-513.02407045,0.0003532,2]
[357936102,1744601443386,-506.56835441,0.0003532,2]
[357936104,1744601443395,-237.11330367,0.0003532,2]
[357936106,1744601443407,-281.39100284,0.0003532,2]
[357936108,1744601443416,-503.33663224,0.0003532,2]
[357936110,1744601443426,-501.82001371,0.0003532,2]
[357936112,1744601443436,-505.27627371,0.0003532,2]
[357936114,1744601443445,-504.75737459,0.0003532,2]
[357936116,1744601443455,-524.32293904,0.0003532,2]
[357936119,1744601443464,-503.97053352,0.0003532,2]
[357936121,1744601443474,-500.0,0.0003532,2]
[357936123,1744601443484,-500.0,0.0003532,2]
[357936125,1744601443495,-225.1252206,0.0003532,2]
[357936127,1744601443507,-281.27849348,0.0003532,2]
[357936129,1744601443517,-241.1544839,0.0003532,2]
[357936132,1744601443530,-297.84806872,0.0003532,2]
[357936134,1744601443539,-501.0477831,0.0003532,2]
[357936136,1744601443549,-502.5434161,0.0003532,2]
[357936138,1744601443559,-225.35370109,0.0003532,2]
[357936140,1744601443569,-500.71102583,0.0003532,2]
[357936142,1744601443579,-510.9210662,0.0003532,2]
[357936144,1744601443589,-416.36645215,0.0003532,2]
[357936146,1744601443602,-86.50135838,0.0003532,2]
[357936148,1744601443612,-464.23637353,0.0003532,2]
[357936151,1744601443625,-45.48792467,0.0003532,2]
[357936153,1744601443635,-501.13815265,0.0003532,2]
[357936155,1744601443645,-201.09406431,0.0003532,2]
[357936157,1744601443655,-507.22126691,0.0003532,2]
[357936159,1744601443664,-506.56650864,0.0003532,2]
[357936161,1744601443674,-501.64903917,0.0003532,2]
[357936163,1744601443683,-537.40771643,0.0003532,2]
[357936165,1744601443692,-242.1197553,0.0003532,2]
[357936167,1744601443703,-263.18178027,0.0003532,2]
[357936169,1744601443713,-282.06530899,0.0003532,2]
[357936400,1744601446180,-500.0,0.0003531,2]
[357936402,1744601446190,-223.3956916,0.0003532,2]
[357936404,1744601446199,-510.01683106,0.0003532,2]
[357936406,1744601446210,-503.64844415,0.0003532,2]
[357936408,1744601446219,-526.39666956,0.0003532,2]
[357936410,1744601446229,-615.59915194,0.0003532,2]
[357936412,1744601446239,-505.23590913,0.0003532,2]
[357936414,1744601446250,-500.79203206,0.0003532,2]
[357936416,1744601446259,-509.66923719,0.0003532,2]
[357936418,1744601446269,-500.0,0.0003532,2]
[357936420,1744601446279,-503.49303383,0.0003532,2]
[357936422,1744601446289,-323.95727868,0.0003532,2]
[357936424,1744601446300,-186.03698614,0.0003532,2]
[357936426,1744601446310,-508.65909945,0.0003532,2]
[357936428,1744601446319,-505.66424205,0.0003532,2]
[357936430,1744601446329,-505.88758952,0.0003532,2]
[357936432,1744601446339,-515.62242884,0.0003532,2]
[357936435,1744601446350,-528.15402319,0.0003532,2]
[357936437,1744601446360,-505.24723125,0.0003532,2]
[357936439,1744601446370,-510.81695283,0.0003532,2]
[357936441,1744601446379,-511.39686818,0.0003532,2]
[357936443,1744601446389,-519.34790078,0.0003532,2]
[357936445,1744601446399,-512.95978668,0.0003532,2]
[357936447,1744601446409,-509.68974909,0.0003532,2]
[357936449,1744601446418,-505.7367942,0.0003532,2]
[357936451,1744601446428,-510.6046057,0.0003532,2]
[357936453,1744601446438,-505.53309709,0.0003532,2]
[357936455,1744601446447,-501.71661152,0.0003532,2]
[357936457,1744601446456,-511.14943262,0.0003532,2]
[357936459,1744601446466,-508.19411735,0.0003532,2]
[357936461,1744601446475,-505.50382067,0.0003532,2]
[357936463,1744601446485,-504.36703105,0.0003532,2]
[357936465,1744601446495,-503.65991709,0.0003532,2]
[357936467,1744601446505,-500.0,0.0003532,2]
[357936469,1744601446514,-598.15372326,0.0003532,2]
[357936471,1744601446524,-505.78714908,0.0003532,2]
[357936473,1744601446533,-502.16592632,0.0003532,2]
[357936475,1744601446543,-503.57252943,0.0003532,2]
[357936477,1744601446552,-549.54103756,0.0003532,2]
[357936479,1744601446561,-504.86525986,0.0003532,2]
[357936481,1744601446571,-504.67818313,0.0003532,2]
[357936483,1744601446581,-502.12532281,0.0003532,2]
[357936485,1744601446591,-503.96275727,0.0003532,2]
[357936487,1744601446600,-505.33454743,0.0003532,2]
[357936488,1744601446609,-500.50777124,0.0003532,2]
[357936490,1744601446619,-631.62352906,0.0003532,2]
[357936492,1744601446629,-297.75585138,0.0003532,2]
[357936494,1744601446639,-502.51008076,0.0003532,2]
[357936496,1744601446649,-220.36202464,0.0003532,2]
[357936498,1744601446658,-500.0,0.0003532,2]
[357936500,1744601446668,-514.38196667,0.0003532,2]
[357936502,1744601446677,-503.69738307,0.0003532,2]
[357936504,1744601446686,-507.05788812,0.0003532,2]
[357936506,1744601446696,-507.51083316,0.0003532,2]
[357936508,1744601446706,-406.08691185,0.0003532,2]
[357936510,1744601446715,-508.41508632,0.0003532,2]
[357936512,1744601446724,-500.0,0.0003532,2]
[357936514,1744601446734,-441.20200781,0.0003532,2]
[357936516,1744601446743,-503.22513129,0.0003532,2]
[357936518,1744601446753,-280.72009099,0.0003532,2]
[357936856,1744602632226,-174.686323,0.00027268,2]
[357936857,1744602632237,-500.0,0.00027397,5]
[357936858,1744602632246,-206.45051582,0.00028453,2]
[357936859,1744602632256,-160.0,0.00028457,2]
[357936860,1744602632265,-754.34253034,0.00028488,2]
[357936861,1744602632275,-206.45051581,0.00028499,2]
[357936862,1744602632285,-838.16197378,0.00028522,2]
[357936863,1744602632294,-300.0,0.00028526,2]
[357936864,1744602632303,-160.0,0.00028527,2]
[357936865,1744602632313,-160.0,0.00028527,2]
[357936866,1744602632326,-12536.72526453,0.00028527,2]
[357936867,1744602632336,-419.9901559,0.00028527,2]
[357936868,1744602632347,-300.0,0.00028544,2]
[357936869,1744602632357,-2136.2838447,0.00028544,2]
[357936870,1744602632366,-2136.2838447,0.00028544,2]
[357936871,1744602632376,-2136.2838447,0.00028544,2]
[357936872,1744602632386,-2136.2838447,0.00028544,2]
[357936874,1744602632395,-2136.2838447,0.00028544,2]
[357936876,1744602632404,-2136.2838447,0.00028544,2]
[357936878,1744602632414,-2136.2838447,0.00028544,2]
[357936880,1744602632423,-2136.2838447,0.00028544,2]
[357936881,1744602632432,-2136.2838447,0.00028544,2]
[357936882,1744602632442,-2136.2838447,0.00028544,2]
[357936883,1744602632452,-2136.2838447,0.00028544,2]
[357936885,1744602632461,-2136.2838447,0.00028544,2]
[357936887,1744602632471,-2136.2838447,0.00028544,2]
[357936889,1744602632481,-2136.2838447,0.00028544,2]
[357936891,1744602632490,-2136.2838447,0.00028544,2]
[357936894,1744602632500,-2136.2838447,0.00028544,2]
[357936896,1744602632510,-2136.2838447,0.00028544,2]
[357936898,1744602632519,-141015.06785,0.00028552,2]
[357936900,1744602632530,-9536.2247209,0.00028552,2]
[357936902,1744602632542,-1303.16562621,0.00028554,2]
[357936904,1744602632552,-1000.0,0.00028561,2]
[357936906,1744602632562,-182.10534,0.00028562,2]
[357936908,1744602632571,-182.10534,0.00028562,2]
[357936910,1744602632582,-182.10534,0.00028562,2]
[357936912,1744602632592,-182.10534,0.00028562,2]
[357936914,1744602632602,-182.10534,0.00028562,2]
[357936916,1744602632613,-182.10534,0.00028562,2]
[357936918,1744602632623,-182.10534,0.00028562,2]
[357936920,1744602632633,-182.10534,0.00028562,2]
[357936922,1744602632643,-152.013852,0.00028562,7]
[357936924,1744602632652,-151.0,0.00028562,7]
[357936926,1744602632662,-268.41161238,0.00028563,2]
[357936928,1744602632671,-500.0,0.00028572,2]
[357936929,1744602632681,-500.0,0.00028572,2]
[357936930,1744602632690,-569.46536282,0.00028572,2]
[357936931,1744602632699,-500.0,0.00028572,2]
[357936932,1744602632708,-708.15,0.00028572,2]
[357936933,1744602632718,-597.41264194,0.00028572,2]
[357936934,1744602632727,-500.0,0.00028572,2]
[357936935,1744602632736,-764.97,0.00028572,2]
[357936936,1744602632746,-853.63,0.00028572,2]
[357936937,1744602632755,-500.0,0.00028572,2]
[357936938,1744602632764,-500.0,0.00028572,2]
[357936939,1744602632774,-1219.14,0.00028572,2]
[357936940,1744602632784,-500.0,0.00028572,2]
[357936941,1744602632794,-500.0,0.00028572,2]
[357936942,1744602632803,-600.01462602,0.00028572,2]
[357936943,1744602632813,-547.67,0.00028572,2]
[357936944,1744602632822,-550.98,0.00028572,2]
[357936945,1744602632832,-609.54,0.00028572,2]
[357936946,1744602632841,-500.0,0.00028572,2]
[357936947,1744602632851,-500.0,0.00028572,2]
[357936948,1744602632861,-500.0,0.00028572,2]
[357936949,1744602632871,-500.0,0.00028572,2]
[357936950,1744602632881,-500.0,0.00028572,2]
[357936951,1744602632891,-500.0,0.00028572,2]
[357936952,1744602632901,-500.0,0.00028572,2]
[357936953,1744602632911,-500.0,0.00028573,5]
[357936954,1744602632921,-500.0,0.00028573,5]
[357936955,1744602632934,-522.59956499,0.00028573,5]
[357936956,1744602632944,-500.0,0.00028573,5]
[357936957,1744602632953,-500.0,0.00028573,5]
[357936958,1744602632963,-500.0,0.00028573,2]
[357936959,1744602632972,-500.0,0.00028573,2]
[357936960,1744602632982,-500.0,0.00028573,5]
[357936961,1744602632992,-501.16878348,0.00028573,5]
[357936962,1744602633003,-500.0,0.00028573,5]
[357936963,1744602633013,-500.0,0.00028573,5]
[357936964,1744602633023,-501.6832447,0.00028573,5]
[357936965,1744602633032,-648.30135116,0.00028573,5]
[357936966,1744602633042,-565.19920392,0.00028573,5]
[357936967,1744602633052,-500.0,0.00028573,5]
[357936968,1744602633061,-500.0,0.00028573,5]
[357936969,1744602633071,-500.0,0.00028573,5]
[357936970,1744602633081,-501.89194143,0.00028573,5]
[357936971,1744602633091,-500.0,0.00028573,5]
[357936972,1744602633102,-500.0,0.00028573,5]
[357936973,1744602633112,-500.0,0.00028573,5]
[357936974,1744602633121,-500.0,0.00028573,5]
[357936975,1744602633131,-500.0,0.00028573,5]
[357936976,1744602633141,-226.36369383,0.00028573,5]
[357936977,1744602633150,-500.0,0.00028573,2]
[357936978,1744602633161,-500.0,0.00028573,5]
[357936979,1744602633174,-500.0,0.00028573,5]
[357936980,1744602633184,-501.54552968,0.00028573,2]
[357936981,1744602633194,-182.10534,0.00028573,2]
[357936982,1744602633204,-182.10534,0.00028573,2]
[357936983,1744602633215,-151.0,0.00028577,7]
[357936984,1744602633224,-28203.01357,0.00028577,2]
[357936985,1744602633234,-1907.24494418,0.00028577,2]
[357936986,1744602633244,-38452.9432164,0.00028578,2]
[357936987,1744602633254,-2774.46414498,0.00028578,3]
[357936988,1744602633264,-56406.0271399,0.00028578,2]
[357936989,1744602633274,-3814.48988836,0.00028578,2]
[357936990,1744602633284,-157.634429,0.00028579,7]
[357936991,1744602633295,-182.10534,0.0002858,2]
[357936992,1744602633305,-182.10534,0.0002858,2]
[357936993,1744602633315,-151.0,0.00028581,7]
[357936994,1744602633325,-151.0,0.00028581,2]
[357936995,1744602633335,-237.36775,0.00028581,2]
[357936996,1744602633346,-506.94925103,0.00028587,2]
[357936997,1744602633356,-512.97659318,0.00028587,2]
[357936998,1744602633366,-500.0,0.00028587,2]
[357936999,1744602633376,-500.0,0.00028587,2]
[357937000,1744602633386,-500.0,0.00028587,2]
[357937001,1744602633395,-500.0,0.00028587,2]
[357937002,1744602633405,-500.0,0.00028587,2]
[357937003,1744602633415,-500.0,0.00028587,2]
[357937004,1744602633425,-507.54391366,0.00028587,2]
[357937005,1744602633434,-500.0,0.00028587,2]
[357937006,1744602633444,-500.0,0.00028587,2]
[357937007,1744602633454,-500.0,0.00028587,2]
[357937008,1744602633463,-500.0,0.00028587,2]
[357937009,1744602633472,-500.0,0.00028587,2]
[357937010,1744602633482,-182.10534,0.00028588,2]
[357937011,1744602633492,-182.10534,0.00028588,2]
[357937012,1744602633502,-28203.01357,0.00028597,2]
[357937013,1744602633511,-1907.24494418,0.00028597,2]
[357937014,1744602633520,-151.251827,0.00028599,7]
[357937015,1744602633533,-542.13196779,0.00028607,2]
[357937016,1744602633543,-500.0,0.00028607,2]
[357937017,1744602633553,-500.97288449,0.00028607,2]
[357937018,1744602633563,-557.00443419,0.00028607,2]
[357937019,1744602633572,-504.21059671,0.00028607,2]
[357937020,1744602633582,-500.0,0.00028607,2]
[357937021,1744602633595,-500.0,0.00028607,2]
[357937022,1744602633605,-500.0,0.00028607,2]
[357937023,1744602633616,-500.0,0.00028607,2]
[357937024,1744602633627,-1193.57,0.00028607,2]
[357937025,1744602633637,-500.0,0.00028607,2]
[357937026,1744602633647,-500.0,0.00028607,2]
[357937027,1744602633657,-500.0,0.00028607,2]
[357937028,1744602633667,-500.0,0.00028607,2]
[357937029,1744602633677,-500.0,0.00028607,2]
[357937030,1744602633688,-500.0,0.00028607,2]
[357937031,1744602633698,-500.0,0.00028607,2]
[357937032,1744602633708,-500.0,0.00028607,2]
[357937033,1744602633717,-500.0,0.00028607,2]
[357937034,1744602633727,-500.0,0.00028607,2]
[357937035,1744602633737,-500.0,0.00028607,2]
[357937036,1744602633747,-500.0,0.00028607,2]
[357937037,1744602633757,-500.0,0.00028607,2]
[357937038,1744602633767,-500.0,0.00028607,2]
[357937039,1744602633776,-500.0,0.00028607,2]
[357937040,1744602633787,-500.0,0.00028607,2]
[357937041,1744602633797,-326.68350904,0.00028607,2]
[357937042,1744602633807,-500.0,0.00028607,2]
[357937043,1744602633817,-500.0,0.00028607,2]
[357937044,1744602633827,-500.0,0.00028607,2]
[357937045,1744602633836,-500.0,0.00028607,2]
[357937046,1744602633845,-500.0,0.00028607,2]
[357937047,1744602633854,-500.0,0.00028607,2]
[357937048,1744602633864,-500.0,0.00028607,2]
[357937049,1744602633874,-500.0,0.00028607,2]
[357937050,1744602633884,-1225.51,0.00028607,2]
[357937051,1744602633894,-500.0,0.00028607,2]
[357937052,1744602633905,-505.78414249,0.00028607,2]
[357937053,1744602633915,-1907.24494418,0.00028615,2]
[357937054,1744602633924,-182.10534,0.00028623,2]
[357937055,1744602633934,-182.10534,0.00028623,2]
[357937056,1744602633944,-500.0,0.00028625,2]
[357937057,1744602633955,-605.29240614,0.00028625,2]
[357937058,1744602633964,-500.0,0.00028625,2]
[357937059,1744602633973,-502.67849134,0.00028625,2]
[357937060,1744602633983,-500.0,0.00028625,2]
[357937061,1744602633993,-500.0,0.00028625,2]
[357937062,1744602634002,-500.0,0.00028625,2]
[357937063,1744602634012,-353.34492023,0.00028625,2]
[357937064,1744602634021,-500.0,0.00028625,2]
[357937065,1744602634031,-500.0,0.00028625,2]
[357937066,1744602634041,-616.3011313,0.00028625,2]
[357937067,1744602634051,-500.0,0.00028625,2]
[357937068,1744602634213,-500.0,0.00028625,2]
[357937069,1744602634224,-530.6375509,0.00028625,2]
[357937070,1744602634233,-500.0,0.00028625,2]
[357937071,1744602634243,-500.0,0.00028625,2]
[357937072,1744602634253,-514.54546092,0.00028625,2]
[357937073,1744602634263,-174.32713751,0.00028625,2]
[357937074,1744602634272,-248.15622465,0.00028625,2]
[357937075,1744602634282,-577.04567106,0.00028625,2]
[357937076,1744602634292,-306.84594991,0.00028625,2]
[357937077,1744602634302,-364.65966521,0.00028625,2]
[357937078,1744602634312,-430.61246755,0.00028625,2]
[357937079,1744602634322,-321.03518355,0.00028625,2]
[357937080,1744602634331,-422.64040784,0.00028625,2]
[357937081,1744602634340,-500.0,0.00028625,2]
[357937082,1744602634351,-188.82953669,0.00028625,2]
[357937083,1744602634361,-500.0,0.00028625,2]
[357937084,1744602634371,-242.31107768,0.00028625,2]
[357937085,1744602634381,-500.0,0.00028625,2]
[357937086,1744602634392,-500.0,0.00028625,2]
[357937087,1744602634402,-500.0,0.00028625,2]
[357937088,1744602634412,-500.0,0.00028625,2]
[357937089,1744602634422,-500.0,0.00028625,2]
[357937090,1744602634431,-337.9417511,0.00028625,2]
[357937091,1744602634441,-184.53629249,0.00028625,2]
[357937092,1744602634451,-500.0,0.00028625,2]
[357937093,1744602634461,-2102.1,0.00028625,2]
[357937094,1744602634470,-505.8621021,0.00028661,2]
[357937095,1744602634481,-504.74059616,0.00028661,2]
[357937096,1744602634490,-182.10534,0.00028662,2]
[357937097,1744602634499,-182.10534,0.00028662,2]
[357937098,1744602634509,-1907.24494418,0.00028663,2]
[357937099,1744602634519,-500.0,0.00028673,5]
[357937100,1744602634530,-500.0,0.00028673,5]
[357937101,1744602634543,-500.0,0.00028673,5]
[357937102,1744602634552,-500.0,0.00028673,5]
[357937103,1744602634562,-500.0,0.00028673,5]
[357937104,1744602634572,-500.0,0.00028673,5]
[357937105,1744602634583,-500.0,0.00028673,5]
[357937106,1744602634592,-500.0,0.00028673,5]
[357937107,1744602634603,-500.0,0.00028673,5]
[357937108,1744602634613,-500.0,0.00028673,4]
[357937109,1744602634624,-12500.0,0.00028673,3]